fUSD/lending_fUSD_20240318
["ID","MTS","AMOUNT","RATE_DAILY","PERIOD"]
[319427855,1710736247541,-5048.11778627,0.0002999,2]
[319427856,1710736247550,-9709.7600522,0.0003,4]
[319427857,1710736247559,-155.0,0.0003,4]
[319427858,1710736247568,-318.58604289,0.0003,4]
[319427859,1710736247577,-187.81748316,0.0003,4]
[319427860,1710736247586,-3299.96705494,0.0003,2]
[319427861,1710736247595,-9455.60052039,0.0003,7]
[319427862,1710736247604,-27458.97278721,0.0003,4]
[319427863,1710736247613,-155.0,0.0003,5]
[319427864,1710736247622,-591.49765394,0.0003,17]
[319427865,1710736247631,-185.91255156,0.0003,14]
[319427866,1710736247640,-3200.0,0.0003,2]
[319427867,1710736247649,-1068.87614222,0.0003,30]
[319427868,1710736247658,-2730.74211136,0.0003,4]
[319427869,1710736247667,-1569.43193933,0.0003,4]
[319427870,1710736247676,-713.64088082,0.0003,30]
[319427871,1710736247685,-406.19680602,0.0003,2]
[319427872,1710736247694,-9163.93716834,0.0003,2]
[319427873,1710736247704,-248.35568911,0.0003,4]
[319427874,1710736247714,-155.26493256,0.0003,4]
[319427875,1710736247725,-486.28061988,0.0003,4]
[319427876,1710736247739,-97573.313469,0.0003,2]
[319427877,1710736247749,-3500.93206721,0.0003,14]
[319427878,1710736247760,-1501.65076323,0.0003,2]
[319427879,1710736247770,-13350.42009613,0.0003,2]
[319427880,1710736247780,-125835.94995006,0.0003,2]
[319427881,1710736247790,-345.50876895,0.0003,2]
[319427882,1710736247801,-9340.42811923,0.0003,2]
[319427883,1710736247812,-240.0,0.0003,120]
[319427884,1710736247823,-2727053.38866535,0.0003,7]
[319427885,1710736247832,-2000.0,0.0003,14]
[319427886,1710736247842,-2046.41371242,0.0003,7]
[319427887,1710736247852,-314.66015489,0.0003,2]
[319427888,1710736247862,-569.35901824,0.0003,7]
[319427889,1710736247873,-1692.96419024,0.0003,2]
[319427890,1710736247884,-586.7551101,0.0003,7]
[319427891,1710736247894,-576.01625574,0.0003,7]
[319427892,1710736247904,-200000.0,0.0003,22]
[319427893,1710736247916,-16761.21271534,0.0003,12]
[319427894,1710736247926,-3963.83,0.0003,10]
[319427895,1710736247936,-300.0,0.0003,120]
[319427896,1710736247946,-2201.90545294,0.0003,3]
[319427897,1710736247958,-600.0,0.0003,31]
[319427898,1710736247969,-5000.0,0.0003,3]
[319427899,1710736247980,-2633.0,0.0003,15]
[319427900,1710736247990,-300.0,0.0003,2]
[319427901,1710736248001,-60726.77721681,0.0003,4]
[319427902,1710736248011,-155.08062146,0.0003,2]
[319427903,1710736248021,-81127.427021,0.0003,5]
[319427904,1710736248031,-500.0,0.0003,7]
[319427905,1710736248042,-10019.8629839,0.0003,4]
[319427906,1710736248052,-636.30878761,0.0003,2]
[319427907,1710736248061,-212.27759286,0.0003,7]
[319427908,1710736248071,-151.0,0.0003,7]
[319427909,1710736248082,-500.0,0.0003,2]
[319427910,1710736248093,-154.626842,0.0003,7]
[319427911,1710736248104,-153.763567,0.0003,7]
[319427912,1710736248114,-422.257105,0.0003,7]
[319427913,1710736248124,-422.257105,0.0003,7]
[319427914,1710736248134,-488.338229,0.0003,7]
[319427915,1710736248144,-151.0,0.0003,7]
[319427916,1710736248154,-488.338229,0.0003,7]
[319427917,1710736248162,-151.0,0.0003,7]
[319427918,1710736248172,-151.58601,0.0003,7]
[319427919,1710736248182,-151.0,0.0003,5]
[319427920,1710736248192,-151.0,0.0003,7]
[319427921,1710736248204,-152.38,0.0003,2]
[319427922,1710736248215,-152.38,0.0003,2]
[319427923,1710736248225,-152.38,0.0003,2]
[319427924,1710736248236,-152.38,0.0003,2]
[319427925,1710736248246,-152.38,0.0003,2]
[319427926,1710736248258,-152.38,0.0003,2]
[319427927,1710736248268,-152.38,0.0003,2]
[319427928,1710736248279,-152.38,0.0003,2]
[319427929,1710736248289,-152.38,0.0003,2]
[319427930,1710736248300,-151.0,0.0003,7]
[319427931,1710736248310,-243.871586,0.0003,7]
[319427932,1710736248320,-203.805027,0.0003,7]
[319427933,1710736248330,-151.0,0.0003,7]
[319427934,1710736248340,-151.0,0.0003,7]
[319427935,1710736248351,-151.0,0.0003,7]
[319427936,1710736248361,-154.830592,0.0003,7]
[319427937,1710736248372,-154.830592,0.0003,7]
[319427938,1710736248383,-174.17123,0.0003,7]
[319427939,1710736248392,-174.17123,0.0003,7]
[319427940,1710736248403,-151.0,0.0003,7]
[319427941,1710736248412,-151.0,0.0003,7]
[319427942,1710736248421,-1967.0,0.0003,4]
[319427943,1710736248430,-151.0,0.0003,7]
[319427944,1710736248441,-151.0,0.0003,7]
[319427945,1710736248450,-151.0,0.0003,7]
[319427946,1710736248461,-151.0,0.0003,7]
[319427947,1710736248470,-151.0,0.0003,7]
[319427948,1710736248480,-205.0,0.0003,2]
[319427949,1710736248489,-168.2,0.0003,2]
[319427950,1710736248499,-168.2,0.0003,2]
[319427951,1710736248510,-168.2,0.0003,2]
[319427952,1710736248520,-168.2,0.0003,2]
[319427953,1710736248531,-168.2,0.0003,2]
[319427954,1710736248540,-168.2,0.0003,2]
[319427955,1710736248550,-168.2,0.0003,2]
[319427956,1710736248560,-168.2,0.0003,2]
[319427957,1710736248569,-168.2,0.0003,2]
[319427958,1710736248585,-168.2,0.0003,2]
[319427959,1710736248595,-168.2,0.0003,2]
[319427960,1710736248605,-168.2,0.0003,2]
[319427961,1710736248615,-168.2,0.0003,2]
[319427962,1710736248625,-168.2,0.0003,2]
[319427963,1710736248635,-168.2,0.0003,2]
[319427964,1710736248645,-168.2,0.0003,2]
[319427965,1710736248655,-168.2,0.0003,2]
[319427966,1710736248665,-168.2,0.0003,2]
[319427967,1710736248675,-168.2,0.0003,2]
[319427968,1710736248686,-168.2,0.0003,2]
[319427969,1710736248696,-168.2,0.0003,2]
[319427970,1710736248707,-168.2,0.0003,2]
[319427971,1710736248717,-168.2,0.0003,2]
[319427972,1710736248727,-168.2,0.0003,2]
[319427973,1710736248739,-168.2,0.0003,2]
[319427974,1710736248749,-168.2,0.0003,2]
[319427975,1710736248759,-168.2,0.0003,2]
[319427976,1710736248772,-168.2,0.0003,2]
[319427977,1710736248783,-154.458886,0.0003,7]
[319427978,1710736248793,-168.2,0.0003,2]
[319427979,1710736248804,-168.2,0.0003,2]
[319427980,1710736248814,-168.2,0.0003,2]
[319427981,1710736248823,-168.2,0.0003,2]
[319427982,1710736248833,-168.2,0.0003,2]
[319427983,1710736248843,-168.2,0.0003,2]
[319427984,1710736248852,-168.2,0.0003,2]
[319427985,1710736248861,-168.2,0.0003,2]
[319427986,1710736248872,-168.2,0.0003,2]
[319427987,1710736248881,-168.2,0.0003,2]
[319427988,1710736248890,-168.2,0.0003,2]
[319427989,1710736248899,-168.2,0.0003,2]
[319427990,1710736248909,-168.2,0.0003,2]
[319427991,1710736248919,-168.2,0.0003,2]
[319427992,1710736248929,-168.2,0.0003,2]
[319427993,1710736248939,-168.2,0.0003,2]
[319427994,1710736248948,-168.2,0.0003,2]
[319427995,1710736248959,-168.2,0.0003,2]
[319427996,1710736248968,-168.2,0.0003,2]
[319427997,1710736248977,-168.2,0.0003,2]
[319427998,1710736248987,-168.2,0.0003,2]
[319427999,1710736248996,-168.2,0.0003,2]
[319428000,1710736249006,-293.530917,0.0003,7]
[319428001,1710736249015,-168.2,0.0003,2]
[319428002,1710736249025,-168.2,0.0003,2]
[319428003,1710736249034,-168.2,0.0003,2]
[319428004,1710736249044,-168.2,0.0003,2]
[319428005,1710736249053,-168.2,0.0003,2]
[319428006,1710736249062,-151.2891834,0.00030108,7]
[319428007,1710736249072,-1000.0,0.00030136,10]
[319428008,1710736249082,-510.0,0.00030136,120]
[319428009,1710736249092,-3321.5625,0.00030136,2]
[319428010,1710736249101,-2224.42,0.00030137,10]
[319428011,1710736249111,-300.0,0.00030137,5]
[319428012,1710736249120,-150.0,0.00030137,2]
[319428013,1710736249130,-190.0,0.00030137,2]
[319428014,1710736249139,-155.0,0.00030138,2]
[319428015,1710736249149,-376.98,0.00030152,2]
[319428016,1710736249158,-571.92995992,0.00030159,2]
[319428017,1710736249167,-157.031811,0.00030198,4]
[319428018,1710736249177,-157.031811,0.00030198,5]
[319428019,1710736249186,-466.61720561,0.0003021,7]
[319428020,1710736249196,-7986.0,0.00030237,21]
[319428021,1710736249207,-300.0,0.0003025,120]
[319428022,1710736249217,-1006.74,0.00030265,2]
[319428023,1710736249226,-500.0,0.0003041,4]
[319428024,1710736249235,-500.0,0.0003041,4]
[319428025,1710736249244,-500.0,0.0003041,4]
[319428026,1710736249253,-500.0,0.0003041,4]
[319428027,1710736249262,-500.0,0.0003041,4]
[319428028,1710736249271,-500.0,0.0003041,4]
[319428029,1710736249280,-500.0,0.0003041,4]
[319428030,1710736249291,-500.0,0.0003041,4]
[319428031,1710736249300,-500.0,0.0003041,4]
[319428032,1710736249309,-500.0,0.0003041,4]
[319428033,1710736249318,-500.0,0.0003041,4]
[319428034,1710736249327,-500.0,0.0003041,4]
[319428035,1710736249337,-500.0,0.0003041,4]
[319428036,1710736249346,-500.0,0.0003041,4]
[319428037,1710736249355,-588.56789011,0.0003041,4]
[319428038,1710736249364,-500.0,0.0003041,4]
[319428039,1710736249373,-363.16555263,0.0003041,4]
[319428040,1710736249382,-500.0,0.0003041,4]
[319428041,1710736249391,-500.0,0.0003041,4]
[319428042,1710736249400,-500.0,0.0003041,4]
[319428043,1710736249409,-500.0,0.0003041,4]
[319428044,1710736249419,-501.01193885,0.0003041,4]
[319428045,1710736249428,-501.22082926,0.0003041,4]
[319428046,1710736249437,-500.0,0.0003041,4]
[319428047,1710736249446,-500.0,0.0003041,4]
[319428048,1710736249457,-500.0,0.0003041,4]
[319428049,1710736249465,-500.0,0.0003041,4]
[319428050,1710736249474,-500.0,0.0003041,4]
[319428051,1710736249484,-500.0,0.0003041,4]
[319428052,1710736249493,-500.0,0.0003041,4]
[319428053,1710736249502,-506.24907788,0.0003041,4]
[319428054,1710736249512,-500.0,0.0003041,4]
[319428055,1710736249522,-500.0,0.0003041,4]
[319428056,1710736249532,-645.20510565,0.0003041,4]
[319428057,1710736249541,-500.0,0.0003041,4]
[319428058,1710736249550,-174.8666106,0.0003041,4]
[319428059,1710736249559,-500.0,0.0003041,4]
[319428060,1710736249569,-500.71759983,0.0003041,4]
[319428061,1710736249578,-500.0,0.0003041,4]
[319428062,1710736249587,-500.0,0.0003041,4]
[319428063,1710736249596,-500.0,0.0003041,4]
[319428064,1710736249605,-500.0,0.0003041,4]
[319428065,1710736249614,-362.12956362,0.0003041,4]
[319428066,1710736249623,-500.0,0.0003041,4]
[319428067,1710736249632,-500.0,0.0003041,4]
[319428068,1710736249642,-500.0,0.0003041,4]
[319428069,1710736249651,-500.0,0.0003041,4]
[319428070,1710736249661,-500.0,0.0003041,4]
[319428071,1710736249670,-500.0,0.0003041,4]
[319428072,1710736249679,-500.0,0.0003041,4]
[319428073,1710736249688,-226.57575859,0.0003041,4]
[319428074,1710736249697,-500.0,0.0003041,4]
[319428075,1710736249707,-500.0,0.0003041,4]
[319428076,1710736249716,-510.0,0.0003041,120]
[319428077,1710736249730,-500.0,0.0003041,4]
[319428078,1710736249739,-500.0,0.0003041,4]
[319428079,1710736249749,-500.0,0.0003041,4]
[319428080,1710736249759,-500.0,0.0003041,4]
[319428081,1710736249768,-500.0,0.0003041,4]
[319428082,1710736249777,-500.0,0.0003041,4]
[319428083,1710736249786,-500.0,0.0003041,4]
[319428084,1710736249795,-500.0,0.0003041,4]
[319428085,1710736249805,-500.0,0.0003041,4]
[319428086,1710736249814,-500.0,0.0003041,4]
[319428087,1710736249823,-209.4078615,0.0003041,4]
[319428088,1710736249832,-500.0,0.0003041,4]
[319428089,1710736249967,-500.0,0.0003041,4]
[319428090,1710736249976,-500.0,0.0003041,4]
[319428091,1710736249986,-513.84724249,0.0003041,4]
[319428092,1710736249995,-500.0,0.0003041,4]
[319428093,1710736250004,-500.0,0.0003041,4]
[319428094,1710736250013,-500.0,0.0003041,4]
[319428095,1710736250023,-689.87194216,0.0003041,30]
[319428096,1710736250033,-500.0,0.0003041,4]
[319428097,1710736250042,-500.0,0.0003041,4]
[319428098,1710736250051,-503.87095133,0.0003041,4]
[319428099,1710736250061,-500.0,0.0003041,4]
[319428100,1710736250071,-500.0,0.0003041,4]
[319428101,1710736250080,-500.0,0.0003041,4]
[319428102,1710736250090,-500.0,0.0003041,4]
[319428103,1710736250099,-500.0,0.0003041,4]
[319428104,1710736250108,-520.74650539,0.0003041,4]
[319428105,1710736250117,-500.33477275,0.0003041,4]
[319428106,1710736250127,-500.0,0.0003041,4]
[319428107,1710736250136,-500.0,0.0003041,4]
[319428108,1710736250145,-500.0,0.0003041,4]
[319428109,1710736250154,-500.0,0.0003041,4]
[319428110,1710736250163,-500.0,0.0003041,4]
[319428111,1710736250172,-500.0,0.0003041,4]
[319428112,1710736250181,-500.0,0.0003041,4]
[319428113,1710736250190,-500.0,0.0003041,4]
[319428114,1710736250200,-534.55424196,0.0003041,4]
[319428115,1710736250209,-500.0,0.0003041,4]
[319428116,1710736250219,-500.0,0.0003041,4]
[319428117,1710736250228,-500.0,0.0003041,4]
[319428118,1710736250237,-500.0,0.0003041,4]
[319428119,1710736250246,-500.0,0.0003041,4]
[319428120,1710736250254,-500.0,0.0003041,4]
[319428121,1710736250263,-500.0,0.0003041,4]
[319428122,1710736250272,-500.0,0.0003041,4]
[319428123,1710736250282,-500.0,0.0003041,4]
[319428124,1710736250291,-500.0,0.0003041,4]
[319428125,1710736250301,-500.0,0.0003041,4]
[319428126,1710736250310,-500.0,0.0003041,4]
[319428127,1710736250319,-500.0,0.0003041,4]
[319428128,1710736250329,-500.0,0.0003041,4]
[319428129,1710736250338,-500.0,0.0003041,4]
[319428130,1710736250347,-500.0,0.0003041,4]
[319428131,1710736250356,-500.0,0.0003041,4]
[319428132,1710736250365,-500.0,0.0003041,4]
[319428133,1710736250375,-500.0,0.0003041,4]
[319428134,1710736250384,-892.35,0.0003041,4]
[319428135,1710736250393,-500.0,0.0003041,4]
[319428136,1710736250403,-500.0,0.0003041,4]
[319428137,1710736250412,-500.0,0.0003041,4]
[319428138,1710736250421,-500.0,0.0003041,4]
[319428139,1710736250431,-500.0,0.0003041,4]
[319428140,1710736250440,-165.58130725,0.0003041,4]
[319428141,1710736250449,-505.12412227,0.0003041,4]
[319428142,1710736250459,-500.0,0.0003041,4]
[319428143,1710736250468,-500.0,0.0003041,4]
[319428144,1710736250478,-588.99,0.0003041,4]
[319428145,1710736250487,-500.0,0.0003041,4]
[319428146,1710736250496,-500.0,0.0003041,4]
[319428147,1710736250505,-500.0,0.0003041,4]
[319428148,1710736250514,-500.0,0.0003041,4]
[319428149,1710736250523,-500.0,0.0003041,4]
[319428150,1710736250533,-500.0,0.0003041,4]
[319428151,1710736250542,-500.0,0.0003041,4]
[319428152,1710736250551,-500.0,0.0003041,4]
[319428153,1710736250559,-500.0,0.0003041,4]
[319428154,1710736250568,-500.0,0.0003041,4]
[319428155,1710736250577,-500.0,0.0003041,4]
[319428156,1710736250586,-500.0,0.0003041,4]
[319428157,1710736250595,-752.67,0.0003041,4]
[319428158,1710736250604,-500.0,0.0003041,4]
[319428159,1710736250613,-504.55879553,0.0003041,4]
[319428160,1710736250622,-500.0,0.0003041,4]
[319428161,1710736250631,-500.0,0.0003041,4]
[319428162,1710736250640,-500.0,0.0003041,4]
[319428163,1710736250648,-506.21794972,0.0003041,4]
[319428164,1710736250657,-500.0,0.0003041,4]
[319428165,1710736250666,-505.15778066,0.0003041,4]
[319428166,1710736250675,-500.0,0.0003041,4]
[319428167,1710736250684,-500.0,0.0003041,4]
[319428168,1710736250693,-578.23077069,0.0003041,4]
[319428169,1710736250702,-510.57956593,0.0003041,4]
[319428170,1710736250713,-500.0,0.0003041,4]
[319428171,1710736250722,-500.0,0.0003041,4]
[319428172,1710736250731,-500.0,0.0003041,4]
[319428173,1710736250745,-566.08967569,0.0003041,30]
[319428174,1710736250754,-500.0,0.0003041,4]
[319428175,1710736250763,-500.0,0.0003041,4]
[319428176,1710736250773,-500.0,0.0003041,4]
[319428177,1710736250782,-500.0,0.0003041,4]
[319428178,1710736250791,-502.28786857,0.0003041,4]
[319428179,1710736250801,-500.0,0.0003041,4]
[319428180,1710736250811,-500.0,0.0003041,4]
[319428181,1710736250822,-500.0,0.0003041,4]
[319428182,1710736250831,-500.0,0.0003041,4]
[319428183,1710736250840,-500.0,0.0003041,4]
[319428184,1710736250850,-500.0,0.0003041,4]
[319428185,1710736250858,-869.9,0.0003041,4]
[319428186,1710736250867,-169.2123982,0.0003041,4]
[319428187,1710736250877,-500.0,0.0003041,4]
[319428188,1710736250886,-500.0,0.0003041,4]
[319428189,1710736250895,-1373.45,0.0003041,4]
[319428190,1710736250905,-536.23,0.0003041,4]
[319428191,1710736250914,-500.0,0.0003041,4]
[319428192,1710736250923,-500.0,0.0003041,4]
[319428193,1710736250932,-1105.28,0.0003041,4]
[319428194,1710736250941,-500.0,0.0003041,4]
[319428195,1710736250951,-500.0,0.0003041,4]
[319428196,1710736250962,-500.0,0.0003041,4]
[319428197,1710736250971,-500.0,0.0003041,4]
[319428198,1710736250980,-500.0,0.0003041,4]
[319428199,1710736250989,-500.0,0.0003041,4]
[319428200,1710736250999,-500.0,0.0003041,4]
[319428201,1710736251008,-430.87230857,0.0003041,4]
[319428202,1710736251017,-500.0,0.0003041,4]
[319428203,1710736251027,-500.0,0.0003041,4]
[319428204,1710736251037,-500.0,0.0003041,4]
[319428205,1710736251047,-622.18,0.0003041,4]
[319428206,1710736251056,-500.0,0.0003041,4]
[319428207,1710736251065,-500.0,0.0003041,4]
[319428208,1710736251074,-500.0,0.0003041,4]
[319428209,1710736251084,-500.0,0.0003041,4]
[319428210,1710736251093,-383.8814928,0.0003041,4]
[319428211,1710736251102,-500.0,0.0003041,4]
[319428212,1710736251112,-500.0,0.0003041,4]
[319428213,1710736251121,-500.0,0.0003041,4]
[319428214,1710736251131,-500.0,0.0003041,4]
[319428215,1710736251140,-500.0,0.0003041,4]
[319428216,1710736251149,-500.0,0.0003041,4]
[319428217,1710736251158,-500.0,0.0003041,4]
[319428218,1710736251167,-500.0,0.0003041,4]
[319428219,1710736251177,-501.4,0.0003041,4]
[319428220,1710736251186,-500.0,0.0003041,4]
[319428221,1710736251195,-500.0,0.0003041,4]
[319428222,1710736251210,-2231.25,0.0003041,4]
[319428223,1710736251226,-500.0,0.0003041,4]
[319428224,1710736251239,-500.0,0.0003041,4]
[319428225,1710736251252,-500.0,0.0003041,4]
[319428226,1710736251265,-407.58366753,0.0003041,4]
[319428227,1710736251280,-500.0,0.0003041,4]
[319428228,1710736251294,-500.0,0.0003041,4]
[319428229,1710736251307,-500.0,0.0003041,4]
[319428230,1710736251320,-500.0,0.0003041,4]
[319428231,1710736251334,-735.9,0.0003041,4]
[319428232,1710736251347,-500.0,0.0003041,4]
[319428233,1710736251361,-585.27552718,0.0003041,4]
[319428234,1710736251375,-509.2276587,0.0003041,4]
[319428235,1710736251386,-500.0,0.0003041,4]
[319428236,1710736251401,-500.0,0.0003041,4]
[319428237,1710736251416,-500.0,0.0003041,4]
[319428238,1710736251428,-500.0,0.0003041,4]
[319428239,1710736251440,-500.0,0.0003041,4]
[319428240,1710736251454,-500.0,0.0003041,4]
[319428241,1710736251469,-500.0,0.0003041,4]
[319428242,1710736251485,-500.0,0.0003041,4]
[319428243,1710736251499,-153.51979008,0.0003041,4]
[319428244,1710736251512,-943.04,0.0003041,4]
[319428245,1710736251522,-500.0,0.0003041,4]
[319428246,1710736251534,-500.0,0.0003041,4]
[319428247,1710736251548,-500.0,0.0003041,4]
[319428248,1710736251561,-500.0,0.0003041,4]
[319428249,1710736251573,-500.0,0.0003041,4]
[319428250,1710736251584,-500.0,0.0003041,4]
[319428251,1710736251597,-505.78113172,0.0003041,4]
[319428252,1710736251609,-500.0,0.0003041,4]
[319428253,1710736251621,-500.0,0.0003041,4]
[319428254,1710736251633,-501.52521685,0.0003041,4]
[319428255,1710736251645,-500.0,0.0003041,4]
[319428256,1710736251657,-500.0,0.0003041,4]
[319428257,1710736251669,-503.91,0.0003041,4]
[319428258,1710736251682,-500.0,0.0003041,4]
[319428259,1710736251694,-500.0,0.0003041,4]
[319428260,1710736251709,-1566.14,0.0003041,4]
[319428261,1710736251721,-508.59456368,0.0003041,4]
[319428262,1710736251738,-500.0,0.0003041,4]
[319428263,1710736251752,-500.0,0.0003041,4]
[319428264,1710736251767,-500.0,0.0003041,4]
[319428265,1710736251781,-500.0,0.0003041,4]
[319428266,1710736251797,-506.92189066,0.0003041,4]
[319428267,1710736251812,-500.0,0.0003041,4]
[319428268,1710736251827,-500.0,0.0003041,4]
[319428269,1710736251840,-507.4443685,0.0003041,4]
[319428270,1710736251854,-557.54363315,0.0003041,4]
[319428271,1710736251866,-500.0,0.0003041,4]
[319428272,1710736251880,-503.39319233,0.0003041,4]
[319428273,1710736251892,-500.0,0.0003041,4]
[319428274,1710736251905,-499.90600417,0.0003041,4]
[319428275,1710736251918,-500.0,0.0003041,4]
[319428276,1710736251931,-501.55600779,0.0003041,4]
[319428277,1710736251946,-500.0,0.0003041,4]
[319428278,1710736251960,-500.0,0.0003041,4]
[319428279,1710736251972,-500.0,0.0003041,4]
[319428280,1710736251984,-507.1545764,0.0003041,4]
[319428281,1710736251995,-501.0127448,0.0003041,4]
[319428282,1710736252007,-500.0,0.0003041,4]
[319428283,1710736252019,-500.0,0.0003041,4]
[319428284,1710736252032,-500.0,0.0003041,4]
[319428285,1710736252044,-507.78,0.0003041,4]
[319428286,1710736252057,-510.55955198,0.0003041,4]
[319428287,1710736252070,-500.0,0.0003041,4]
[319428288,1710736252081,-500.0,0.0003041,4]
[319428289,1710736252094,-500.0,0.0003041,4]
[319428290,1710736252106,-500.0,0.0003041,4]
[319428291,1710736252118,-512.00403768,0.0003041,4]
[319428292,1710736252129,-500.0,0.0003041,4]
[319428293,1710736252142,-504.88823274,0.0003041,4]
[319428294,1710736252153,-500.0,0.0003041,4]
[319428295,1710736252165,-500.0,0.0003041,4]
[319428296,1710736252177,-518.35616199,0.0003041,4]
[319428297,1710736252189,-500.0,0.0003041,4]
[319428298,1710736252200,-500.0,0.0003041,4]
[319428299,1710736252211,-504.92682623,0.0003041,4]
[319428300,1710736252224,-500.0,0.0003041,4]
[319428301,1710736252236,-500.0,0.0003041,4]
[319428302,1710736252248,-500.0,0.0003041,4]
[319428303,1710736252261,-500.0,0.0003041,4]
[319428304,1710736252273,-500.0,0.0003041,4]
[319428305,1710736252284,-500.0,0.0003041,4]
[319428306,1710736252297,-500.0,0.0003041,4]
[319428307,1710736252310,-500.0,0.0003041,4]
[319428308,1710736252321,-599.92521291,0.0003041,4]
[319428309,1710736252333,-500.0,0.0003041,4]
[319428310,1710736252346,-500.0,0.0003041,4]
[319428311,1710736252358,-276.83450502,0.0003041,4]
[319428312,1710736252370,-500.0,0.0003041,4]
[319428313,1710736252383,-500.0,0.0003041,4]
[319428314,1710736252394,-500.0,0.0003041,4]
[319428315,1710736252407,-500.0,0.0003041,4]
[319428316,1710736252420,-506.76627577,0.0003041,4]
[319428317,1710736252431,-501.60846592,0.0003041,4]
[319428318,1710736252443,-832.17,0.0003041,4]
[319428319,1710736252455,-500.0,0.0003041,4]
[319428320,1710736252468,-500.0,0.0003041,4]
[319428321,1710736252480,-500.0,0.0003041,4]
[319428322,1710736252492,-500.0,0.0003041,4]
[319428323,1710736252504,-500.0,0.0003041,4]
[319428324,1710736252516,-500.0,0.0003041,4]
[319428325,1710736252529,-500.0,0.0003041,4]
[319428326,1710736252541,-500.0,0.0003041,4]
[319428327,1710736252555,-500.0,0.0003041,4]
[319428328,1710736252566,-500.0,0.0003041,4]
[319428329,1710736252577,-500.0,0.0003041,4]
[319428330,1710736252589,-500.81937105,0.0003041,4]
[319428331,1710736252599,-506.63932415,0.0003041,4]
[319428332,1710736252611,-503.98171727,0.0003041,4]
[319428333,1710736252622,-500.0,0.0003041,4]
[319428334,1710736252633,-500.0,0.0003041,4]
[319428335,1710736252644,-500.0,0.0003041,4]
[319428336,1710736252656,-500.0,0.0003041,4]
[319428337,1710736252668,-503.03339653,0.0003041,4]
[319428338,1710736252679,-500.48602302,0.0003041,4]
[319428339,1710736252690,-581.49197338,0.0003041,4]
[319428340,1710736252701,-500.0,0.0003041,4]
[319428341,1710736252713,-500.0,0.0003041,4]
[319428342,1710736252725,-500.0,0.0003041,4]
[319428343,1710736252738,-500.0,0.0003041,4]
[319428344,1710736252752,-500.0,0.0003041,4]
[319428345,1710736252765,-502.77211368,0.0003041,4]
[319428346,1710736252777,-500.0,0.0003041,4]
[319428347,1710736252790,-500.0,0.0003041,4]
[319428348,1710736252802,-336.59442616,0.0003041,4]
[319428349,1710736252814,-1123.76,0.0003041,4]
[319428350,1710736252826,-600.34,0.0003041,4]
[319428351,1710736252837,-710.22,0.0003041,4]
[319428352,1710736252849,-500.0,0.0003041,4]
[319428353,1710736252861,-507.3342748,0.0003041,4]
[319428354,1710736252873,-500.0,0.0003041,4]